fUST/lending_fUST_20260206
["ID","MTS","AMOUNT","RATE_DAILY","PERIOD"]
[404637871,1770367838196,-500.0,0.00015278,2]
[404637872,1770367838206,-250.0,0.00015278,2]
[404637873,1770367838216,-500.0,0.00015278,2]
[404637874,1770367838225,-250.0,0.00015278,2]
[404637875,1770367838237,-500.0,0.00015278,2]
[404637876,1770367838246,-250.0,0.00015278,2]
[404637877,1770367838255,-500.0,0.00015278,2]
[404637878,1770367838266,-250.0,0.00015278,2]
[404637879,1770367838277,-500.0,0.00015278,2]
[404637880,1770367838287,-250.0,0.00015278,2]
[404637881,1770367838297,-500.0,0.00015278,2]
[404637882,1770367838307,-250.0,0.00015278,2]
[404637883,1770367838316,-250.0,0.00015278,2]
[404637884,1770367838327,-250.0,0.00015278,2]
[404637885,1770367838337,-250.0,0.00015278,2]
[404637886,1770367838347,-250.0,0.00015278,2]
[404637887,1770367838356,-151.0,0.00015278,2]
[404637888,1770367838366,-250.0,0.00015278,2]
[404637889,1770367838375,-250.0,0.00015278,2]
[404637890,1770367838385,-250.0,0.00015278,2]
[404637891,1770367838397,-250.0,0.00015278,2]
[404637892,1770367838407,-250.0,0.00015278,2]
[404637893,1770367838417,-250.0,0.00015278,2]
[404637894,1770367838427,-500.0,0.00015278,2]
[404637895,1770367838437,-250.0,0.00015278,2]
[404637896,1770367838447,-250.0,0.00015278,2]
[404637897,1770367838456,-250.0,0.00015278,2]
[404637898,1770367838469,-250.0,0.00015278,2]
[404637899,1770367838478,-250.0,0.00015278,2]
[404637900,1770367838488,-250.0,0.00015278,2]
[404637901,1770367838497,-500.0,0.00015278,2]
[404637902,1770367838507,-250.0,0.00015278,2]
[404637903,1770367838516,-250.0,0.00015278,2]
[404637904,1770367838528,-500.0,0.00015278,2]
[404637905,1770367838538,-250.0,0.00015278,2]
[404637906,1770367838689,-500.0,0.00015278,2]
[404637907,1770367838707,-250.0,0.00015278,2]
[404637908,1770367838717,-500.0,0.00015278,2]
[404637909,1770367838726,-250.0,0.00015278,2]
[404637910,1770367838736,-500.0,0.00015278,2]
[404637911,1770367838745,-616.2153435,0.00015326,2]
[404637912,1770367838755,-151.0,0.00015391,2]
[404637913,1770367838766,-420.0,0.00015493,2]
[404637914,1770367838777,-1680.0,0.00015558,2]
[404637915,1770367838787,-1000.0,0.00015566,2]
[404637916,1770367838797,-198.29608866,0.0001561,2]
[404637917,1770367838807,-294.31,0.00016029,2]
[404637918,1770367838816,-176.99,0.00016029,2]
[404637919,1770367838826,-356.93295959,0.0001609,2]
[404637920,1770367838836,-187.02150702,0.00016093,2]
[404637921,1770367838845,-2259.36817292,0.00016154,2]
[404637922,1770367838855,-177.0,0.0001619,2]
[404637923,1770367838865,-155.48966448,0.00016438,2]
[404637924,1770367838875,-151.0,0.00016438,2]
[404637925,1770367838885,-151.0,0.00016438,2]
[404637926,1770367838895,-151.0,0.00016438,2]
[404637927,1770367838906,-151.0,0.00016438,2]
[404637928,1770367838915,-164.78621526,0.00016438,2]
[404637929,1770367838925,-720.0,0.00016772,2]
[404637930,1770367838935,-616.2153435,0.00016777,2]
[404637931,1770367838944,-1675.313091,0.00016941,2]
[404637932,1770367838953,-587.0,0.00016971,2]
[404637933,1770367838963,-49164.34155192,0.00017,2]
[404637934,1770367838973,-20000.0,0.00017,2]
[404637935,1770367838983,-171.299951,0.00017,2]
[404637936,1770367838992,-151.0,0.00017,2]
[404637937,1770367839002,-151.0,0.00017,2]
[404637938,1770367839011,-151.0,0.00017,2]
[404637939,1770367839023,-273.213005,0.00017,2]
[404637940,1770367839033,-1018.0,0.00017114,2]
[404637941,1770367839042,-217.25,0.00017218,3]
[404637942,1770367839052,-1147.0671176,0.00017228,2]
[404637943,1770367839062,-434.49,0.00017522,3]
[404637944,1770367839071,-786.23415385,0.00017532,2]
[404637945,1770367839081,-253.33728143,0.00017532,2]
[404637946,1770367839091,-261.02297375,0.00017581,3]
[404637947,1770367839101,-1675.313091,0.00017655,2]
[404637948,1770367839111,-255.9452696,0.00017916,2]
[404637949,1770367839121,-204.0,0.0001819,2]
[404637950,1770367839131,-616.2153435,0.00018229,2]
[404637951,1770367839141,-1675.313091,0.00018368,2]
[404637952,1770367839151,-864.0,0.0001845,2]
[404637953,1770367839160,-434.5,0.00018588,3]
[404637954,1770367839170,-823.0,0.0001859,2]
[404637955,1770367839180,-868.98,0.00018892,3]
[404637957,1770367839190,-651.77,0.0001899,3]
[404637958,1770367839200,-27284.0,0.00019,2]
[404637959,1770367839209,-151.0,0.00019,2]
[404637960,1770367839219,-1675.313091,0.00019081,2]
[404637961,1770367839229,-484.4985521,0.0001912,2]
[404637962,1770367839239,-151.514068,0.00019178,2]
[404637963,1770367839248,-172.91,0.000192,2]
[404637964,1770367839258,-1675.313091,0.00019794,2]
[404637965,1770367839268,-231.0,0.0002019,2]
[404637966,1770367839280,-1000.0,0.00020295,2]
[404637967,1770367839290,-1152.0,0.00020364,2]
[404637969,1770367839300,-1675.313091,0.00020507,2]
[404637970,1770367839310,-151.0,0.00020822,2]
[404637971,1770367839319,-151.0,0.00020822,2]
[404637972,1770367839328,-151.0,0.00020822,2]
[404637973,1770367839337,-151.0,0.00020822,2]
[404637974,1770367839347,-151.0,0.00020822,2]
[404637975,1770367839356,-180.02689,0.00020822,2]
[404637976,1770367839365,-3567.14719344,0.00020888,2]
[404637977,1770367839375,-1153.53,0.00021,2]
[404637978,1770367839385,-632.0,0.00021415,2]
[404637979,1770367839396,-1380.282,0.00021415,2]
[404637980,1770367839405,-2158.0,0.00021415,2]
[404637981,1770367839414,-151.0,0.00021918,2]
[404637982,1770367839423,-151.0,0.00021918,2]
[404637983,1770367839434,-151.0,0.00021918,2]
[404637984,1770367839443,-151.0,0.00021918,2]
[404637985,1770367839452,-151.0,0.00021918,2]
[404637986,1770367839463,-151.0,0.00021918,2]
[404637987,1770367839472,-151.0,0.00021918,2]
[404637988,1770367839481,-151.0,0.00021918,2]
[404637989,1770367839490,-151.0,0.00021918,2]
[404637990,1770367839499,-177.823768,0.00021918,2]
[404637991,1770367839508,-150.19840739,0.00021918,2]
[404637992,1770367839517,-150.331,0.00021986,2]
[404637993,1770367839527,-250.0,0.00021986,2]
[404637994,1770367839535,-348.74,0.00022,7]
[404637995,1770367839545,-154.88930355,0.00022075,3]
[404637996,1770367839554,-258.0,0.0002219,2]
[404637997,1770367839564,-155.0,0.00022241,2]
[404637998,1770367839574,-1000.0,0.00022324,10]
[404637999,1770367839583,-244.0,0.00022324,10]
[404638000,1770367839592,-782.27,0.00022781,2]
[404638001,1770367839601,-782.27,0.00023464,2]
[404638002,1770367839611,-100000.0,0.0002399,2]
[404638004,1770367839620,-23769.8312815,0.00024,60]
[404638005,1770367839629,-4074.93091866,0.00024,30]
[404638006,1770367839638,-782.27,0.00024168,2]
[404638007,1770367839648,-285.0,0.0002419,2]
[404638008,1770367839657,-151.0,0.000244,7]
[404638009,1770367839667,-632.0,0.00024415,2]
[404638010,1770367839676,-1373.0,0.00024415,2]
[404638011,1770367839687,-2158.0,0.00024415,2]
[404638012,1770367839697,-1000.0,0.00024556,10]
[404638013,1770367839709,-492.0,0.00024556,10]
[404638014,1770367839719,-1153.53,0.000246,14]
[404638015,1770367839729,-151.0,0.000248,5]
[404638016,1770367839739,-92647.8614158,0.000249,2]
[404638017,1770367839748,-150.0,0.00024986,2]
[404638018,1770367839759,-15441.310236,0.0002499,2]
[404638019,1770367839769,-48780.34412509,0.00025,2]
[404638020,1770367839779,-6133.69926711,0.00025,30]
[404638021,1770367839788,-1041.66666667,0.00025,30]
[404638022,1770367839797,-487.0,0.00025,2]
[404638023,1770367839807,-487.0,0.00025,2]
[404638024,1770367839817,-487.0,0.00025,2]
[404638025,1770367839826,-487.0,0.00025,2]
[404638026,1770367839836,-487.0,0.00025,2]
[404638027,1770367839845,-487.0,0.00025,2]
[404638028,1770367839854,-487.0,0.00025,2]
[404638029,1770367839865,-487.0,0.00025,2]
[404638030,1770367839875,-487.0,0.00025,2]
[404638031,1770367839886,-487.0,0.00025,2]
[404638032,1770367839896,-610.07,0.00025,2]
[404638033,1770367839905,-348.74,0.000253,7]
[404638034,1770367839915,-190.34337013,0.000256,10]
[404638035,1770367839925,-168.0,0.00025609,2]
[404638036,1770367839935,-151.0,0.000258,18]
[404638037,1770367839945,-151.0,0.000258,19]
[404638038,1770367839956,-249.122,0.00025999,12]
[404638039,1770367839967,-151.0,0.000261,18]
[404638040,1770367839976,-300.0,0.00026116,2]
[404638041,1770367839985,-312.0,0.0002619,2]
[404638042,1770367839995,-2294.34,0.000262,2]
[404638043,1770367840004,-3567.14719344,0.00026887,2]
[404638044,1770367840014,-1153.53,0.000269,14]
[404638045,1770367840025,-1000.0,0.00027012,30]
[404638046,1770367840035,-791.0,0.00027012,30]
[404638047,1770367840046,-151.0,0.000272,15]
[404638048,1770367840058,-151.0,0.000272,10]
[404638049,1770367840069,-151.0,0.000272,15]
[404638050,1770367840080,-376.519476,0.00027397,7]
[404638051,1770367840089,-376.519476,0.00027397,7]
[404638052,1770367840099,-376.519476,0.00027397,7]
[404638053,1770367840108,-376.519476,0.00027397,7]
[404638054,1770367840118,-376.519476,0.00027397,7]
[404638055,1770367840128,-376.519476,0.00027397,7]
[404638056,1770367840139,-376.519476,0.00027397,7]
[404638057,1770367840149,-376.519476,0.00027397,7]
[404638058,1770367840159,-376.519476,0.00027397,7]
[404638059,1770367840168,-376.519476,0.00027397,7]
[404638060,1770367840177,-376.519476,0.00027397,7]
[404638061,1770367840187,-376.519476,0.00027397,7]
[404638062,1770367840197,-376.519476,0.00027397,7]
[404638063,1770367840207,-376.519476,0.00027397,7]
[404638064,1770367840216,-376.519476,0.00027397,7]
[404638065,1770367840226,-376.519476,0.00027397,7]
[404638066,1770367840235,-376.519476,0.00027397,7]
[404638067,1770367840245,-376.519476,0.00027397,7]
[404638068,1770367840254,-376.519476,0.00027397,7]
[404638069,1770367840264,-376.519483,0.00027397,7]
[404638070,1770367840275,-200.0,0.000274,24]
[404638071,1770367840284,-151.0,0.000274,10]
[404638072,1770367840294,-632.0,0.00027415,2]
[404638073,1770367840304,-1373.0,0.00027415,2]
[404638074,1770367840313,-2158.0,0.00027415,2]
[404638075,1770367840323,-166.0,0.00027562,14]
[404638076,1770367840332,-160.0,0.000276,14]
[404638077,1770367840342,-943.94569817,0.00027742,2]
[404638078,1770367840352,-2684.5365532,0.00028,2]
[404638079,1770367840361,-348.74,0.000281,7]
[404638080,1770367840370,-339.0,0.0002819,2]
[404638081,1770367840380,-160.0,0.00028286,3]
[404638082,1770367840392,-200.0,0.000284,27]
[404638083,1770367840403,-2294.34,0.000284,2]
[404638084,1770367840412,-151.0,0.000286,14]
[404638085,1770367840422,-151.0,0.000286,14]
[404638086,1770367840434,-500.0,0.000286,10]
[404638087,1770367840444,-500.0,0.000286,10]
[404638088,1770367840453,-151.0,0.000286,17]
[404638089,1770367840465,-151.541399,0.00028603,30]
[404638090,1770367840474,-151.849678,0.00028603,30]
[404638091,1770367840484,-152.157958,0.00028603,30]
[404638092,1770367840494,-152.466238,0.00028603,30]
[404638093,1770367840505,-152.774518,0.00028603,30]
[404638094,1770367840515,-157.0,0.00028658,14]
[404638095,1770367840525,-151.0,0.000287,20]
[404638096,1770367840535,-15441.310236,0.0002875,2]
[404638097,1770367840546,-196.4215904,0.0002876,2]
[404638098,1770367840555,-5818.24401517,0.0002876,30]
[404638099,1770367840565,-215.859438,0.00028767,60]
[404638100,1770367840576,-173.17304942,0.000288,7]
[404638101,1770367840585,-151.0,0.000288,10]
[404638102,1770367840595,-1153.53,0.000288,14]
[404638103,1770367840605,-892.97462436,0.00029,2]
[404638104,1770367840615,-323.0,0.00029,3]
[404638105,1770367840625,-500.0,0.0002913,20]
[404638106,1770367840634,-500.0,0.0002913,5]
[404638107,1770367840644,-500.0,0.0002913,20]
[404638108,1770367840653,-500.0,0.0002913,5]
[404638109,1770367840663,-500.0,0.0002913,5]
[404638110,1770367840674,-500.0,0.0002913,20]
[404638111,1770367840684,-2000.0,0.00029205,7]
[404638112,1770367840693,-200.0,0.000294,30]
[404638113,1770367840705,-160.0,0.00029441,4]
[404638114,1770367840715,-1514.377137,0.000295,2]
[404638115,1770367840726,-61765.2409438,0.00029521,2]
[404638116,1770367840736,-135455.69034512,0.00029531,2]
[404638117,1770367841048,-231.0042905,0.00015278,2]
[404638118,1770367841142,-268.9957095,0.00015278,2]
[404638119,1770367841152,-500.0,0.00015278,2]
[404638120,1770367841161,-500.0,0.00015278,2]
[404638121,1770367841172,-419.0073765,0.00015278,2]
[404638130,1770367844142,-80.9926235,0.00015278,2]
[404638131,1770367844152,-500.0,0.00015278,2]
[404638132,1770367844162,-500.0,0.00015278,2]
[404638133,1770367844173,-500.0,0.00015278,2]
[404638134,1770367844182,-500.0,0.00015278,2]
[404638135,1770367844191,-580.64515267,0.00015278,2]
[404638136,1770367844201,-398.232,0.00021415,2]
[404638137,1770367844212,-420.0,0.00021415,2]
[404638138,1770367844222,-387.08762773,0.00024415,2]
[404638139,1770367844234,-32.91237227,0.00024415,2]
[404638140,1770367844245,-339.007,0.00027415,2]
[404638141,1770367844254,-9600.75732775,0.00029531,2]
[404638161,1770368009592,500.0,0.0003,120]
[404638163,1770368026555,871.0,0.0003,120]
[404638164,1770368036288,500.0,0.0003,120]
[404638165,1770368055038,400.0,0.0003,120]
[404638235,1770368469309,-5000.0,0.00015659,2]
[404638236,1770368476640,-150.0,0.00016058,2]
[404638237,1770368476662,-850.0,0.00016058,2]
[404638238,1770368481897,-2567.50742978,0.00016058,2]
[404638256,1770368851566,-832.23150023,0.00018,2]
[404638257,1770368851595,-150.0,0.00018029,2]
[404638258,1770368851624,-2579.55497436,0.00018029,2]
[404638259,1770368851653,-600.0,0.00018407,2]
[404638260,1770368851687,-600.0,0.00019519,3]
[404638261,1770368851719,-177.0,0.00020029,2]
[404638262,1770368851914,-150.0,0.00021,2]
[404638263,1770368851942,-336.0,0.00022,2]
[404638264,1770368851970,-204.0,0.00022029,2]
[404638265,1770368852000,-336.0,0.00022192,7]
[404638266,1770368852030,-1577.04408563,0.00022704,2]
[404638267,1770368852065,-4793.92182874,0.00022704,2]
[404638268,1770368852201,-571.02040003,0.00022704,2]
[404638269,1770368852231,-632.0,0.00022704,2]
[404638270,1770368852259,-719.0,0.00022704,2]
[404638271,1770368852290,-664.93,0.00022781,2]
[404638272,1770368852319,-223.174,0.00022912,2]
[404638273,1770368852348,-2158.0,0.00022912,2]
[404638274,1770368852584,-1373.0,0.00022912,2]
[404638275,1770368852612,-336.0,0.00023014,7]
[404638276,1770368852642,-664.93,0.00023464,2]
[404638277,1770368852673,-231.0,0.00024029,2]
[404638278,1770368852701,-336.0,0.00024164,7]
[404638279,1770368852730,-664.93,0.00024168,2]
[404638280,1770368852759,-1000.0,0.00024617,30]
[404638283,1770368863962,168.0,0.00024932,7]
[404638312,1770369031751,-376.35483316,0.00022781,2]
[404638577,1770369037772,-188.83516684,0.00022781,2]
[404638579,1770369037782,-565.19,0.00023464,2]
[404638581,1770369037793,-565.19,0.00024168,2]
[404638583,1770369037802,-5000.0,0.00024851,2]
[404638585,1770369037811,-168.0,0.00024932,7]
[404638587,1770369037821,-168.0,0.00025,7]
[404638589,1770369037830,-150.0,0.00025103,2]
[404638591,1770369037839,-794.39934226,0.00025193,2]
[404638593,1770369037848,-5000.0,0.00025447,2]
[404638595,1770369037857,-2526.10102733,0.00025447,2]
[404638597,1770369037867,-632.0,0.00025704,2]
[404638600,1770369037876,-719.0,0.00025704,2]
[404638601,1770369037886,-168.0,0.0002589,7]
[404638604,1770369037895,-2158.0,0.00025912,2]
[404638606,1770369037904,-231.238,0.00025967,11]
[404638607,1770369037914,-1688.0030859,0.00026221,2]
[404638609,1770369037923,-177.0,0.00027103,2]
[404638611,1770369037932,-168.0,0.00027185,7]
[404638614,1770369037941,-194.11573488,0.00027274,2]
[404638616,1770369037951,-1000.0,0.00027304,5]
[404638618,1770369037960,-159.0,0.00027507,14]
[404638620,1770369037969,-194.11573488,0.00028423,56]
[404638622,1770369037978,-629.29713212,0.00028645,2]
[404638623,1770369037987,-632.0,0.00028704,2]
[404638625,1770369037996,-719.0,0.00028704,2]
[404638628,1770369038005,-2158.0,0.00028912,2]
[404638630,1770369038015,-204.0,0.00029103,2]
[404638632,1770369038024,-180.0,0.00029151,33]
[404638633,1770369038033,-2229.4669959,0.00029413,2]
[404638636,1770369038042,-225.31941184,0.00029512,2]
[404638638,1770369038051,-500.0,0.00029512,2]
[404638640,1770369038062,-572.34157859,0.00029512,2]
[404638642,1770369038072,-500.0,0.00029512,2]
[404638644,1770369038082,-154.36659779,0.00029512,2]
[404638646,1770369038092,-500.0,0.00029512,2]
[404638648,1770369038101,-362.54462651,0.00029512,2]
[404638649,1770369038111,-500.0,0.00029512,2]
[404638652,1770369038120,-500.0,0.00029512,2]
[404638654,1770369038130,-500.0,0.00029512,2]
[404638655,1770369038139,-500.0,0.00029512,2]
[404638657,1770369038149,-500.0,0.00029512,2]
[404638660,1770369038158,-562.13604781,0.00029512,2]
[404638662,1770369038168,-500.0,0.00029512,2]
[404638664,1770369038178,-214.18229645,0.00029512,2]
[404638665,1770369038187,-206.94940294,0.00029512,2]
[404638668,1770369038197,-35277.47891916,0.00029531,2]
[404638670,1770369038207,-194.11573488,0.00029571,110]
[404638672,1770369038216,-4388.94147582,0.000297,2]
[404638674,1770369038225,-244.11,0.000297,7]
[404638676,1770369038235,-172.91,0.000297,7]
[404638678,1770369038245,-168.0,0.00029903,14]
[404638680,1770369038255,-500.0,0.00029972,2]
[404638682,1770369038264,-500.0,0.00029972,2]
[404638684,1770369038274,-500.0,0.00029972,2]
[404638686,1770369038284,-500.0,0.00029972,2]
[404638688,1770369038294,-500.0,0.00029972,2]
[404638690,1770369038303,-500.0,0.00029972,2]
[404638691,1770369038313,-500.0,0.00029972,2]
[404638693,1770369038322,-500.0,0.00029972,2]
[404638695,1770369038331,-500.0,0.00029972,2]
[404638697,1770369038341,-500.0,0.00029972,2]
[404638699,1770369038350,-500.0,0.00029972,2]
[404638701,1770369038360,-250.0,0.00029972,2]
[404638703,1770369038369,-500.0,0.00029972,2]
[404638704,1770369038380,-500.0,0.00029972,2]
[404638705,1770369038389,-500.0,0.00029972,2]
[404638706,1770369038399,-500.0,0.00029972,2]
[404638707,1770369038408,-500.0,0.00029972,2]
[404638708,1770369038417,-500.0,0.00029972,2]
[404638709,1770369038427,-500.0,0.00029972,2]
[404638710,1770369038436,-500.0,0.00029972,2]
[404638711,1770369038446,-500.0,0.00029972,2]
[404638712,1770369038455,-500.0,0.00029972,2]
[404638713,1770369038465,-263.98547857,0.00029972,2]
[404638714,1770369038474,-250.0,0.00029972,2]
[404638715,1770369038483,-250.0,0.00029972,2]
[404638716,1770369038493,-250.0,0.00029972,2]
[404638717,1770369038503,-250.0,0.00029972,2]
[404638718,1770369038513,-250.0,0.00029972,2]
[404638719,1770369038523,-250.0,0.00029972,2]
[404638720,1770369038533,-250.0,0.00029972,2]
[404638721,1770369038543,-250.0,0.00029972,2]
[404638722,1770369038552,-265.69967328,0.00029972,2]
[404638723,1770369038563,-250.0,0.00029972,2]
[404638725,1770369038573,-250.0,0.00029972,2]
[404638727,1770369038583,-250.0,0.00029972,2]
[404638729,1770369038592,-250.0,0.00029972,2]
[404638731,1770369038602,-250.0,0.00029972,2]
[404638733,1770369038611,-4842.72,0.0002998,10]
[404638735,1770369038621,-4035.6,0.0002998,10]
[404638737,1770369038631,-111.13128976,0.0002998,10]
[404638739,1770369038644,-3251.86871024,0.0002998,10]
[404638741,1770369038654,-618.51246247,0.00029989,2]
[404638743,1770369038663,-11261.93546455,0.0002999,2]
[404638745,1770369038676,-28830.77588265,0.0002999,2]
[404638747,1770369038686,-213.46837492,0.0002999,2]
[404638749,1770369038695,-329.511713,0.0002999,7]
[404638751,1770369038705,-329.511713,0.0002999,7]
[404638753,1770369038714,-329.511713,0.0002999,7]
[404638755,1770369038725,-329.511713,0.0002999,7]
[404638757,1770369038734,-5193.68783783,0.0003,2]
[404638759,1770369038743,-12160.35748371,0.0003,30]
[404638761,1770369038752,-165.46,0.0003,5]
[404638776,1770369038886,-270.3831689,0.0003,2]
[404638778,1770369038896,-2988.10279937,0.0003,7]
[404638780,1770369038905,-379.0,0.0003,8]
[404638782,1770369038915,-11280.31915605,0.0003,30]
[404638899,1770369040065,-5373.78270372,0.0003,30]
[404638901,1770369040076,-1258.43671265,0.0003,30]
[404638904,1770369040092,-275.19829994,0.0003,30]
[404638911,1770369040153,-0.00234285,0.0003,30]
[404639333,1770369044437,-2802.5,0.0002999,10]
[404639335,1770369044448,-813.5,0.0003,30]
[404639723,1770369324824,-513.66,0.00022781,2]
[404639724,1770369324990,-513.66,0.00023464,2]
[404639725,1770369325018,-2945.37,0.00023618,2]
[404639726,1770369325113,-2054.63,0.00023618,2]
[404639727,1770369325142,-300.0,0.00023856,2]
[404639728,1770369325172,-285.0,0.00023856,2]
[404639729,1770369325200,-243.14720501,0.00023857,2]
[404639730,1770369325283,-1058.48279499,0.00023857,2]
[404639731,1770369325321,-3175.97279499,0.00023857,2]
[404639732,1770369325364,-1255.69164488,0.00023857,2]
[404639733,1770369325435,-630.93835512,0.00023857,2]
[404639734,1770369325474,-505.74276514,0.00023857,2]
[404639735,1770369325502,-150.0,0.00023978,2]
[404639736,1770369325528,-719.0,0.00024098,2]
[404639737,1770369325562,-179.0,0.00024098,2]
[404639738,1770369325590,-513.66,0.00024168,2]
[404639739,1770369325618,-627.67,0.00024885,11]
[404639740,1770369325646,-177.0,0.00025978,2]
[404639741,1770369331688,4255.86446972,0.00026108,2]
[404639742,1770369331709,744.13553028,0.00026108,2]
[404639744,1770369354195,178.94064308,0.00026108,2]
[404639749,1770369574872,500.0,0.00029,120]
[404639750,1770369575676,500.0,0.00029,120]
[404639751,1770369576472,500.0,0.00029,120]
[404639752,1770369577300,500.0,0.00029,120]
[404639753,1770369578138,500.0,0.00029,120]
[404639754,1770369579306,500.0,0.00029,120]
[404639755,1770369580059,500.0,0.00029,120]
[404639756,1770369580840,349.35,0.00029,120]
[404639761,1770369820011,-2521.19,0.00022104,2]
[404639762,1770369820042,-150.0,0.00022216,2]
[404639763,1770369820217,-5000.0,0.00022327,2]
[404639764,1770369820325,-5000.0,0.00022553,2]
[404639765,1770369820471,-436.61,0.00022781,2]
[404639766,1770369820500,-2491.54090081,0.00023382,2]
[404639767,1770369820527,-436.61,0.00023464,2]
[404639768,1770369820554,-300.0,0.00023932,10]
[404639769,1770369820582,-512.48819838,0.00024098,2]
[404639770,1770369820664,-1645.51180162,0.00024098,2]
[404639771,1770369820694,-719.0,0.00024098,2]
[404639772,1770369820721,-179.0,0.00024098,2]
[404639773,1770369820749,-436.61,0.00024168,2]
[404639774,1770369820778,-177.0,0.00024216,2]
[404639775,1770369820807,-204.0,0.00026216,2]
[404639776,1770369820835,-184.99,0.00026575,13]
[404639777,1770369821106,-559.6876068,0.00026761,2]
[404639778,1770369821180,-55.9223932,0.00026761,2]
[404639779,1770369821194,-177.0,0.00026761,2]
[404639780,1770369821211,-204.0,0.00026761,2]
[404639781,1770369821229,-184.99,0.00026761,2]
[404639782,1770369821242,-2907.78639676,0.00026761,2]
[404639783,1770369821291,-5350.93599644,0.00026761,2]
[404639784,1770369821301,-1950.78362143,0.00026998,2]
[404639785,1770369821310,-2138.60277533,0.00027098,2]
[404639786,1770369822858,-19.39722467,0.00027098,2]
[404639787,1770369822887,-719.0,0.00027098,2]
[404639788,1770369822916,-179.0,0.00027098,2]
[404639789,1770369822952,-182.0,0.00027507,14]
[404639790,1770369826111,3021.81,0.0002769,2]
[404639791,1770369834380,4779.40555066,0.0002769,2]
[404639792,1770369834405,220.59444934,0.0002769,2]
[404639872,1770370237100,-963.72371194,0.00013292,2]
[404639881,1770370238142,-4036.27628806,0.00013292,2]
[404639882,1770370238152,-4391.1966235,0.00013426,2]
[404639883,1770370238163,-608.8033765,0.00013426,2]
[404639884,1770370238172,-150.0,0.00013494,2]
[404639885,1770370238182,-526.19077036,0.00013699,2]
[404639886,1770370238192,-177.0,0.00015494,2]
[404639887,1770370238202,-204.0,0.00017494,2]
[404639888,1770370238212,-231.0,0.00019494,2]
[404639889,1770370238222,-258.0,0.00021494,2]
[404639891,1770370238233,-371.12,0.00022781,2]
[404639892,1770370238244,-114.06566031,0.00023464,2]
[404639896,1770370240173,-257.05433969,0.00023464,2]
[404639897,1770370240182,-285.0,0.00023494,2]
[404639898,1770370240191,-371.92,0.00024098,2]
[404639899,1770370240200,-719.0,0.00024098,2]
[404639900,1770370240209,-179.0,0.00024098,2]
[404639901,1770370240218,-371.12,0.00024168,2]
[404639902,1770370240228,-300.0,0.00025304,12]
[404639904,1770370240237,-312.0,0.00025494,2]
[404639905,1770370240247,-1723.34222996,0.00026,30]
[404639906,1770370240257,-199.00740031,0.00026826,2]
[404639907,1770370240266,-719.0,0.00027098,2]
[404639908,1770370240276,-179.0,0.00027098,2]
[404639909,1770370240286,-339.0,0.00027494,2]
[404639910,1770370240296,-155.0,0.00027507,25]
[404639911,1770370240306,-13051.79,0.00028,7]
[404639912,1770370240315,-1041.66666667,0.00028,7]
[404639913,1770370240325,-741.48751943,0.00028,7]
[404639914,1770370240334,-160.0,0.00028748,3]
[404639915,1770370240343,-419.53142141,0.000291,2]